bitfinex/quotes_ETHUSD_20241129
["timestamp","ask_amount","ask_price","bid_price","bid_amount"]
[1732913892167,2.7806,3596.4,3596.3,0.08693421]
[1732913892475,4.00580699,3596.6,3596.3,0.08693421]
[1732913892674,2.78049,3596.5,3596.4,0.08693421]
[1732913893676,3.0,3596.7,3596.1,2.78074]
[1732913893873,5.78032,3596.7,3596.3,0.8156]
[1732913894050,5.78032,3596.7,3596.4,0.08692725]
[1732913894251,4.00562699,3596.8,3596.5,0.08692725]
[1732913894477,2.78025,3596.8,3596.6,0.08692725]
[1732913894690,2.78025,3596.8,3596.3,3.59623]
[1732913894888,2.78017,3596.9,3596.4,2.86747052]
[1732913895088,2.78017,3596.9,3596.5,0.08692052]
[1732913895289,2.78017,3596.9,3596.6,0.08692052]
[1732913895592,2.78017,3596.9,3596.7,0.08692052]
[1732913895759,2.78017,3596.9,3596.4,2.78055]
[1732913895953,2.78017,3596.9,3596.5,0.08691992]
[1732913896158,2.78017,3596.9,3596.6,0.08691992]
[1732913896359,2.78017,3596.9,3596.7,0.08691992]
[1732913896667,2.78017,3596.9,3596.8,0.08691992]
[1732913897299,2.78017,3596.9,3596.8,0.08691979]
[1732913898567,2.78017,3596.9,3596.3,3.59623]
[1732913898768,2.78017,3596.9,3596.4,0.08691952]
[1732913898963,2.78017,3596.9,3596.5,0.08691952]
[1732913899303,2.78017,3596.9,3596.6,0.08691952]
[1732913899471,2.73017,3596.9,3596.7,0.08691952]
[1732913899802,2.73017,3596.9,3596.3,3.59623]
[1732913899977,2.73017,3596.9,3596.4,0.76009689]
[1732913900179,0.7781,3597.2,3596.5,0.08691949]
[1732913900489,6.55807,3597.2,3596.6,2.86725949]
[1732913900695,2.78002,3597.1,3596.6,2.86725949]
[1732913901008,4.00539699,3597.1,3596.7,0.08691949]
[1732913901586,2.78011,3597.0,3596.7,0.08691949]
[1732913902369,2.78011,3597.0,3596.8,0.08691617]
[1732913903489,2.78011,3597.0,3596.5,2.78047]
[1732913904401,2.78011,3597.0,3596.6,0.08691484]
[1732913904767,2.78011,3597.0,3596.9,0.41411771]
[1732913905783,2.78011,3597.0,3596.9,0.672891]
[1732913906814,2.78011,3597.0,3596.9,0.67272619]
[1732913907883,1.22537699,3597.1,3596.9,0.67272619]
[1732913908215,4.00541699,3597.1,3597.0,0.67265554]
[1732913909299,1.22537699,3597.1,3597.0,0.67265554]
[1732913910373,4.00538699,3597.1,3597.0,0.67265554]
[1732913911168,4.00538699,3597.1,3596.7,0.804]
[1732913911382,4.00538699,3597.1,3597.0,0.41397875]
[1732913911605,4.00538699,3597.1,3597.0,0.67271547]
[1732913913616,1.22537699,3597.1,3597.0,0.67271547]
[1732913915602,2.77995,3597.2,3597.0,0.67271547]
[1732913915808,2.77995,3597.2,3597.1,0.67271547]
[1732913917223,2.77995,3597.2,3597.1,0.25872218]
[1732913917394,2.77995,3597.2,3597.1,0.67267767]
[1732913917582,4.00519699,3597.4,3597.1,0.67267767]
[1732913917788,2.77987,3597.3,3597.2,0.67267767]
[1732913921014,2.77995,3597.2,3596.7,4.01578855]
[1732913921215,1.22537699,3597.1,3596.8,0.76009225]
[1732913921524,1.22537699,3597.1,3596.9,0.76009225]
[1732913921712,1.22537699,3597.1,3597.0,0.76009225]
[1732913923331,4.00538699,3597.1,3597.0,0.76009225]
[1732913924255,1.22537699,3597.1,3597.0,0.76053401]
[1732913927547,1.22537699,3597.1,3597.0,0.76069754]
[1732913930558,6.00996398,3597.1,3597.0,0.67378753]
[1732913930757,3.55921,3597.1,3597.0,0.25929924]
[1732913931052,4.78458699,3597.1,3597.0,0.41487451]
[1732913931358,4.78458699,3597.1,3597.0,0.25929536]
[1732913932033,4.78458699,3597.1,3597.0,0.67399255]
[1732913932433,2.78021,3596.9,3596.4,0.43193715]
[1732913932633,1.22537699,3596.8,3596.5,0.6738295]
[1732913932827,1.22537699,3596.8,3596.6,0.6738295]
[1732913933057,1.22537699,3596.8,3596.7,0.6738295]
[1732913934124,4.00539699,3597.1,3596.7,0.6738295]
[1732913934319,4.00539699,3597.1,3596.8,0.6738295]
[1732913934524,4.00539699,3597.1,3596.9,0.6738295]
[1732913934747,4.00539699,3597.1,3597.0,0.6738295]
[1732913935941,3.0,3597.3,3597.0,0.6738295]
[1732913936164,4.22537699,3597.3,3597.1,0.6738295]
[1732913936460,3.59615,3597.6,3597.2,0.6738295]
[1732913936627,7.00508699,3597.5,3597.3,0.6738295]
[1732913936961,7.00508699,3597.5,3597.4,0.6738295]
[1732913940325,7.00508699,3597.5,3597.4,0.67379773]
[1732913942888,7.00508699,3597.5,3597.4,0.67359984]
[1732913943684,3.0,3597.5,3597.4,0.67359984]
[1732913943838,3.0,3597.7,3597.4,0.67359984]
[1732913944174,1.22537699,3597.9,3597.5,0.67359984]
[1732913944381,3.0,3597.8,3597.6,0.67359984]
[1732913944594,3.0,3597.8,3597.7,0.67359984]
[1732913944952,4.22537699,3597.8,3597.7,0.67359984]
[1732913945154,2.7794,3597.9,3597.7,0.67359984]
[1732913945387,2.7794,3597.9,3597.8,0.67359984]
[1732913945888,4.00477699,3597.9,3597.8,0.67296464]
[1732913947691,2.77928,3598.1,3597.8,0.67296464]
[1732913947851,1.22537699,3597.9,3597.7,0.792]
[1732913948053,1.22537699,3597.9,3597.8,0.67261163]
[1732913949056,1.22537699,3597.9,3597.7,0.792]
[1732913949367,1.22537699,3597.9,3597.8,0.67253907]
[1732913955400,1.22537699,3597.9,3597.7,0.792]
[1732913955698,1.22537699,3598.1,3597.8,0.67234273]
[1732913955864,1.22537699,3598.3,3597.9,3.45168273]
[1732913956060,1.22537699,3598.3,3598.0,0.67234273]
[1732913956274,1.22537699,3598.3,3598.1,0.67234273]
[1732913956485,1.22537699,3598.3,3598.2,0.67234273]
[1732913956863,2.77894,3598.5,3598.2,0.67234273]
[1732913957087,1.22537699,3598.4,3598.3,0.25859336]
[1732913957588,4.00438699,3598.4,3598.3,0.25859336]
[1732913958017,8.22976398,3598.4,3598.3,0.25859336]
[1732913958186,2.77955,3597.7,3597.6,0.41371913]
[1732913958386,4.00492699,3597.7,3597.6,0.25860786]
[1732913958620,4.00492699,3597.7,3597.6,0.25864715]
[1732913958998,4.00492699,3597.7,3597.2,0.7844]
[1732913959223,1.22537699,3597.5,3597.2,1.418855]
[1732913959414,1.22537699,3597.5,3597.3,0.67244725]
[1732913959627,1.22537699,3597.5,3597.4,0.67244725]
[1732913959933,4.00507699,3597.5,3597.4,0.2586347]
[1732913961998,1.22537699,3597.5,3597.4,0.25881869]
[1732913962187,4.00507699,3597.5,3597.4,0.25881869]
[1732913963186,7.83337699,3597.5,3597.4,0.25881869]
[1732913963524,2.78014,3597.0,3596.6,0.41424081]
[1732913963725,1.22537699,3596.8,3596.7,0.67324039]
[1732913964227,4.00561699,3596.8,3596.7,0.67324039]
[1732913965209,4.00561699,3596.8,3596.7,0.6733094]
[1732913966331,4.00561699,3596.8,3596.7,0.67321275]
[1732913967031,3.0,3597.5,3596.7,0.67321275]
[1732913967197,2.77999,3597.2,3596.7,0.14501128]
[1732913969435,4.00540699,3597.1,3596.7,0.14501128]
[1732913969642,4.00540699,3597.1,3596.5,0.7769]
[1732913969810,4.00540699,3597.1,3596.5,3.55737]
[1732913971111,2.78009,3597.0,3596.5,0.7769]
[1732913973420,1.22537699,3597.1,3596.5,0.7769]
[1732913973628,1.22537699,3597.1,3596.5,3.55732]
[1732913973828,1.22537699,3597.1,3596.6,0.633787]
[1732913975326,1.22537699,3597.1,3596.6,3.414167]
[1732913975719,2.7798,3597.4,3596.7,0.8174]
[1732913975955,4.00517699,3597.4,3596.8,2.78024]
[1732913976656,4.00517699,3597.4,3596.9,0.7976]
[1732913976949,1.22537699,3597.4,3596.9,1.2187627]
[1732913977162,1.22537699,3597.4,3596.9,3.9989127]
[1732913978018,1.22537699,3597.4,3596.9,1.2187627]
[1732913978217,1.22537699,3597.7,3597.0,2.78003]
[1732913978454,1.22537699,3597.7,3597.2,0.8153]
[1732913978655,0.8279,3598.7,3597.3,2.77986]
[1732913978813,4.00467699,3598.1,3597.5,2.77963]
[1732913981153,1.22537699,3597.9,3597.4,0.7688]
[1732913981316,1.22537699,3597.9,3597.4,3.54853]
[1732913983854,1.22537699,3597.9,3597.4,0.7688]
[1732913984059,1.22537699,3597.9,3597.5,2.7797]
[1732913984530,1.22537699,3597.9,3597.4,1.19162353]
[1732913984733,4.00477699,3597.9,3597.4,1.19162353]
[1732913984937,1.22537699,3597.9,3597.4,3.97135353]
[1732913986547,2.77933,3598.0,3597.4,3.97135353]
[1732913986749,1.22537699,3597.9,3597.5,3.30791316]
[1732913986945,2.77933,3598.0,3597.5,3.30791316]
[1732913987164,1.22537699,3598.1,3597.5,3.30791316]
[1732913987345,4.00463699,3598.1,3597.5,3.30791316]
[1732913987541,1.22537699,3598.1,3597.6,2.77962]
[1732913993164,1.22537699,3598.1,3597.7,0.8174]
[1732913996401,1.22537699,3598.1,3597.0,2.78005]
[1732913996402,1.22537699,3597.8,3597.5,0.8271]
[1732913996609,4.00485699,3597.8,3597.5,0.8271]
[1732914000875,2.77971,3597.5,3597.2,0.8039]
[1732914001080,1.22537699,3597.4,3597.2,0.8039]
[1732914001667,4.00494699,3597.7,3597.2,4.26234027]
[1732914001869,1.22537699,3597.7,3597.2,4.26234027]
[1732914002071,1.22537699,3597.7,3597.3,2.77984]
[1732914002491,2.77925,3598.1,3597.4,2.77978]
[1732914002686,2.77925,3598.1,3597.5,3.56705]
[1732914002887,3.0,3598.2,3597.6,3.414303]
[1732914003088,2.77917,3598.2,3597.7,0.7874]
[1732914003487,4.00471699,3598.0,3597.7,0.7874]
[1732914005505,2.77901,3598.4,3597.7,0.7874]
[1732914005847,4.22537699,3598.5,3597.7,0.7874]
[1732914005966,7.00432699,3598.5,3597.9,3.55464]
[1732914006172,7.00432699,3598.5,3598.0,2.77928]
[1732914007511,1.22537699,3598.5,3598.1,2.77919]
[1732914007891,1.22537699,3598.5,3598.0,3.412685]
[1732914008097,4.22537699,3598.5,3598.0,3.412685]
[1732914008399,2.77913,3598.3,3598.0,0.633405]
[1732914008718,2.77913,3598.3,3597.9,0.7753]
[1732914009104,4.00436699,3598.5,3597.9,3.55463]
[1732914009294,5.77885,3598.7,3598.1,2.77919]
[1732914009648,4.77804699,3598.8,3598.4,0.7617]
[1732914009649,4.00411699,3598.8,3598.4,0.7617]
[1732914011638,4.00408699,3598.8,3598.4,0.7617]
[1732914011800,2.77862,3599.0,3598.4,0.7617]
[1732914011801,2.77863,3598.9,3598.4,0.7617]
[1732914011996,1.22537699,3599.3,3598.5,0.35408]
[1732914012195,2.77877,3598.8,3598.4,0.7617]
[1732914013501,1.22537699,3598.7,3598.4,0.7617]
[1732914014599,2.77891,3598.6,3598.0,0.8225]
[1732914014836,1.22537699,3598.3,3598.0,0.8225]
[1732914014997,4.00446699,3598.3,3598.0,0.8225]
[1732914015999,2.77924,3598.1,3597.5,2.77967]
[1732914016237,2.77924,3598.1,3597.7,0.8225]
[1732914016437,2.77947,3597.8,3597.7,0.8225]
[1732914016639,2.77947,3597.8,3597.4,0.8225]
[1732914016640,2.77963,3597.6,3597.4,0.8225]
[1732914017231,1.22537699,3597.7,3597.4,0.8225]
[1732914017745,4.00493699,3597.7,3597.4,0.8225]
[1732914018333,2.77967,3597.6,3597.4,0.8225]
[1732914018634,2.77943,3597.9,3597.4,0.8225]
[1732914018803,2.53252932,3598.1,3597.4,0.8225]
[1732914018804,2.77956,3597.7,3597.4,0.8225]
[1732914019005,2.77965,3597.6,3597.4,0.8225]
[1732914019238,2.7797,3597.5,3597.3,0.01639331]
[1732914019544,2.77978,3597.4,3597.3,0.01639331]
[1732914021206,3.59898,3597.4,3597.3,0.01639331]
[1732914021526,6.59898,3597.4,3597.3,0.01639331]
[1732914029018,9.13150932,3597.4,3597.3,0.01639331]
[1732914029308,9.68150932,3597.4,3597.3,0.01639331]
[1732914030919,2.78082,3596.1,3595.9,0.7926]
[1732914031141,2.78082,3596.1,3596.0,0.25848908]
[1732914032469,5.56133,3596.3,3596.0,0.25848908]
[1732914032653,2.78064,3596.3,3596.1,0.25848908]
[1732914032866,2.78072,3596.2,3595.9,0.7926]
[1732914033167,2.78072,3596.2,3596.0,0.25826845]
[1732914033352,2.78072,3596.2,3595.9,0.7926]
[1732914033674,2.78079,3596.1,3596.0,0.25815951]
[1732914033976,2.78079,3596.1,3595.9,0.7926]
[1732914035370,2.78079,3596.1,3595.5,0.8178]
[1732914035371,2.78097,3595.9,3595.5,0.8178]
[1732914035547,2.78107,3595.8,3595.6,0.25802437]
[1732914035732,2.78107,3595.8,3595.7,0.25802437]
[1732914035935,2.78107,3595.8,3595.6,0.25802437]
[1732914036160,2.78107,3595.8,3595.7,0.25802437]
[1732914037283,2.78107,3595.8,3595.5,0.8178]
[1732914037439,2.78107,3595.8,3595.6,0.25792543]
[1732914037640,2.78107,3595.8,3595.7,0.25792666]
[1732914037948,2.78087,3596.0,3595.7,0.25792666]
[1732914037949,2.78087,3596.0,3595.7,0.25792327]
[1732914038288,2.78102,3595.8,3595.5,0.8178]
[1732914038440,2.78102,3595.8,3595.6,0.25791108]
[1732914038641,2.78102,3595.8,3595.5,0.8178]
[1732914038854,2.78102,3595.8,3595.6,0.25789465]
[1732914039055,2.78102,3595.8,3595.5,0.8178]
[1732914039255,2.78102,3595.8,3595.6,0.2578793]
[1732914039457,2.78102,3595.8,3595.5,0.8178]
[1732914039637,2.78102,3595.8,3595.6,0.25788081]
[1732914039843,2.78102,3595.8,3595.5,0.8178]
[1732914040070,2.78102,3595.8,3595.6,0.2578822]
[1732914040277,2.78102,3595.8,3595.5,0.8178]
[1732914040445,2.78102,3595.8,3595.6,0.25792029]
[1732914040639,2.78102,3595.8,3595.5,0.8178]
[1732914040858,2.78102,3595.8,3595.6,0.25792342]
[1732914041053,2.78108,3595.8,3595.5,0.8178]
[1732914041269,6.09884932,3596.4,3595.6,0.25798877]
[1732914041472,2.78106,3595.8,3595.5,0.8178]
[1732914041666,2.78106,3595.8,3595.6,0.25799178]
[1732914041875,2.78106,3595.8,3595.5,0.8178]
[1732914042087,2.78106,3595.8,3595.6,0.2579915]
[1732914042268,2.78106,3595.8,3595.7,0.2579915]
[1732914042477,2.78102,3595.8,3595.6,0.2579915]
[1732914042649,2.78102,3595.8,3595.5,0.8178]
[1732914042851,2.78109,3595.7,3595.6,0.25812437]
[1732914046281,2.78109,3595.7,3595.5,0.8178]
[1732914046477,2.78109,3595.7,3595.6,0.2587044]
[1732914048191,4.00713495,3595.7,3595.6,0.2587044]
[1732914049687,2.78136,3595.4,3595.2,0.7942]
[1732914049900,2.78136,3595.4,3595.3,0.25908051]
[1732914050200,0.7716,3597.1,3595.7,2.78105]
[1732914050499,0.7716,3597.1,3596.1,0.7942]
[1732914050500,2.78047,3596.6,3596.1,0.7942]
[1732914050688,4.00637495,3596.7,3596.2,0.25908051]
[1732914050859,4.00637495,3596.7,3596.3,0.25908051]
[1732914051087,4.00637495,3596.7,3596.4,0.25908051]
[1732914051328,4.00637495,3596.7,3596.1,3.57491]
[1732914051329,2.7804,3596.6,3596.5,0.25908051]
[1732914052185,1.22604495,3596.7,3596.5,0.25908051]
[1732914052384,4.00637495,3596.7,3596.6,0.25908051]
[1732914052611,4.00637495,3596.7,3596.1,0.7942]
[1732914052813,2.78041,3596.6,3596.2,0.25907533]
[1732914052987,2.78041,3596.6,3596.3,0.25907533]
[1732914053323,2.78041,3596.6,3596.4,0.25907533]
[1732914053480,2.78041,3596.6,3596.5,0.25907533]
[1732914054834,5.31455765,3596.6,3596.5,0.25907533]
[1732914055327,2.78103,3595.8,3595.2,2.78142]
[1732914055517,2.78103,3595.8,3595.3,1.04498771]
[1732914055717,2.78103,3595.8,3595.4,0.25938771]
[1732914055914,2.78103,3595.8,3595.3,0.7856]
[1732914056087,2.78076,3596.2,3595.6,0.7856]
[1732914056421,2.78076,3596.2,3595.7,0.25938722]
[1732914056591,2.78057,3596.4,3595.6,0.7856]
[1732914056592,2.78057,3596.4,3595.8,0.25938722]
[1732914056791,2.78077,3596.2,3595.9,0.25938722]
[1732914057023,2.78079,3596.1,3596.0,0.25938722]
[1732914057889,6.10153765,3596.1,3596.0,0.25938722]
[1732914059331,6.10153765,3596.1,3596.0,0.2595729]
[1732914059992,9.10153765,3596.1,3596.0,0.2595729]
[1732914060209,9.10154765,3596.1,3596.0,0.25961052]
[1732914060534,2.7812,3595.6,3595.4,0.7617]
[1732914060698,2.7812,3595.6,3595.5,0.25960771]
[1732914061431,2.7812,3595.6,3595.5,0.25959479]
[1732914061593,2.78102,3595.8,3595.5,0.25959479]
[1732914061793,2.78109,3595.7,3595.6,0.25959479]
[1732914064615,2.78125,3595.5,3595.4,0.7617]
[1732914064941,2.78125,3595.5,3595.4,1.02128108]
[1732914065230,2.78109,3595.7,3595.4,1.02128108]
[1732914065391,2.78109,3595.7,3595.5,0.25958108]
[1732914065593,2.78117,3595.6,3595.4,0.7617]
[1732914065794,2.78117,3595.6,3595.5,0.25955307]
[1732914067798,2.78102,3595.8,3595.5,0.25963764]
[1732914068101,2.78102,3595.8,3595.4,0.7617]
[1732914068102,2.78103,3595.8,3595.6,0.25963764]
[1732914068299,2.78103,3595.8,3595.7,0.25963764]
[1732914068725,5.56181,3596.0,3595.7,0.25963764]
[1732914068931,2.78094,3595.9,3595.8,0.25963764]
[1732914069301,5.31508765,3595.9,3595.8,0.25963764]
[1732914069643,2.78094,3595.9,3595.8,0.25963764]
[1732914071532,2.78107,3595.8,3595.4,0.7617]
[1732914071839,2.78107,3595.8,3595.5,0.25964029]
[1732914072144,2.78107,3595.8,3595.6,0.25964029]
[1732914072352,2.78109,3595.7,3595.4,0.7617]
[1732914072533,2.78102,3595.8,3595.5,0.25963946]
[1732914072842,2.78113,3595.7,3595.6,0.25963946]
[1732914074467,2.78107,3595.8,3595.6,0.25963946]
[1732914074671,2.78107,3595.8,3595.7,0.25963946]
[1732914075248,2.78089,3596.0,3595.7,0.25963946]
[1732914075472,2.78089,3596.0,3595.8,1.04993946]
[1732914075676,2.78073,3596.2,3595.9,0.25963946]
[1732914075891,2.78043,3596.6,3596.0,0.25963946]
[1732914076036,2.78025,3596.8,3596.1,3.83071946]
[1732914076241,2.78025,3596.8,3596.2,0.25963946]
[1732914076481,2.78035,3596.7,3596.3,0.25963946]
[1732914076778,2.78035,3596.7,3596.4,0.25963946]
[1732914076973,2.78035,3596.7,3596.5,0.25963946]
[1732914077199,2.7804,3596.6,3596.1,0.7903]
[1732914078246,2.78061,3596.4,3596.1,0.7903]
[1732914078986,2.78094,3595.9,3595.8,0.7623]
[1732914079339,2.78064,3596.3,3595.8,0.7623]
[1732914080077,2.78073,3596.2,3595.8,0.7623]
[1732914080662,2.78079,3596.1,3595.8,0.7623]
[1732914082362,2.78088,3596.0,3595.8,0.7623]
[1732914082606,2.78079,3596.1,3595.8,0.7623]
[1732914083193,2.78066,3596.3,3595.8,0.7623]
[1732914083371,2.78072,3596.2,3595.8,0.7623]
[1732914086278,2.78084,3596.1,3595.8,0.7623]
[1732914086692,2.78058,3596.4,3595.8,1.116654]
[1732914086905,2.78058,3596.4,3595.8,0.7623]
[1732914087570,2.78049,3596.5,3595.9,2.78089]
[1732914087872,2.78049,3596.5,3596.0,0.7546]
[1732914088960,2.7804,3596.6,3596.0,3.53544]
[1732914089124,2.7804,3596.6,3596.0,0.7546]
[1732914089447,2.78017,3596.9,3596.0,4.16705]
[1732914089648,2.78,3597.2,3596.2,3.55179]
[1732914089810,0.7863,3597.4,3596.4,0.7711]
[1732914089811,2.78019,3596.9,3596.4,0.7711]
[1732914090750,2.78026,3596.8,3596.4,0.7711]
[1732914092531,2.78018,3596.9,3596.4,0.7711]
[1732914093533,3.0,3597.3,3596.4,0.7711]
[1732914093732,2.78023,3596.9,3596.4,0.7711]
[1732914094633,2.78025,3596.8,3596.4,0.7711]
[1732914096667,2.78017,3596.9,3596.4,0.7711]
[1732914097629,4.00506721,3597.1,3596.4,0.7711]
[1732914097971,4.00506721,3597.1,3596.4,3.55165]
[1732914098264,2.78009,3597.0,3596.4,3.55165]
[1732914098590,2.78018,3596.9,3596.4,0.7711]
[1732914099230,4.00507721,3597.1,3596.4,0.7711]
[1732914099435,2.78024,3596.9,3596.4,0.7711]
[1732914099773,1.22502721,3596.8,3596.4,0.7711]
[1732914099969,4.00531721,3596.8,3596.4,0.7711]
[1732914100327,2.78029,3596.8,3596.4,0.7711]
[1732914102571,2.78033,3596.7,3596.4,0.7711]
[1732914103150,2.78011,3597.0,3596.4,0.7711]
[1732914103338,2.78037,3596.7,3596.4,0.7711]
[1732914104849,2.7803,3596.8,3596.4,0.7711]
[1732914107579,2.78035,3596.7,3596.4,0.7711]
[1732914108144,2.78041,3596.6,3596.4,0.7711]
[1732914108535,2.78072,3596.2,3595.8,0.8327]
[1732914108744,4.00579721,3596.2,3595.8,0.8327]
[1732914109368,2.78077,3596.2,3595.8,0.8327]
[1732914110881,2.78058,3596.4,3595.8,0.8327]
[1732914111041,2.78068,3596.3,3595.8,0.8327]
[1732914111259,2.78071,3596.2,3595.8,0.8327]
[1732914111714,2.78058,3596.4,3595.9,0.02780754]
[1732914111860,2.78043,3596.6,3595.9,0.7591]
[1732914112067,2.78028,3596.8,3596.1,0.7591]
[1732914112386,2.78037,3596.7,3596.1,3.53988]
[1732914112885,0.7746,3596.9,3596.1,0.7591]
[1732914115183,2.78048,3596.5,3596.1,0.7591]
[1732914116566,2.78035,3596.7,3596.1,0.7591]
[1732914116923,5.56075,3596.7,3596.1,0.7591]
[1732914117119,5.56075,3596.7,3596.1,1.391182]
[1732914117773,2.78035,3596.7,3596.1,1.391182]
[1732914118276,2.78052,3596.5,3596.1,0.7591]
[1732914118836,2.78037,3596.7,3596.1,0.7591]
[1732914119040,2.78046,3596.6,3596.1,0.7591]
[1732914119340,2.78037,3596.7,3596.1,0.7591]
[1732914119538,2.78051,3596.5,3596.1,0.7591]
[1732914123747,2.78037,3596.7,3596.1,1.391188]
[1732914123748,2.77782776,3596.6,3596.1,1.391188]
[1732914124048,2.77782776,3596.6,3596.1,1.39225533]
[1732914124342,2.78033,3596.7,3596.1,4.17299533]
[1732914124550,0.8264,3597.5,3596.4,3.5507]
[1732914124708,0.8264,3597.5,3596.5,0.41285038]
[1732914124709,2.78013,3597.0,3596.5,0.41285038]
[1732914125342,2.78025,3596.8,3596.5,0.41285038]
[1732914125545,2.78013,3597.0,3596.5,0.41285038]
[1732914127833,2.78002,3597.1,3596.5,3.19332038]
[1732914128035,2.7801,3597.0,3596.5,3.19332038]
[1732914128353,2.77997,3597.2,3596.7,0.7969]
[1732914129153,2.77997,3597.2,3596.7,2.7803]
[1732914129352,2.77978,3597.4,3596.8,3.58294]
[1732914130140,2.77978,3597.4,3596.9,0.8243]
[1732914130446,2.77978,3597.4,3597.0,0.55]
[1732914130652,2.77978,3597.4,3597.0,0.965452]
[1732914131147,2.77989,3597.3,3597.0,0.965452]
[1732914131723,4.00474721,3597.5,3597.0,0.965452]
[1732914132961,2.77978,3597.4,3597.0,0.965452]
[1732914134289,4.00474721,3597.5,3597.0,0.965452]
[1732914134290,2.78001,3597.1,3597.0,0.55]
[1732914134615,2.78036,3596.7,3596.2,0.7858]
[1732914135066,2.7804,3596.6,3596.2,0.7858]
[1732914135273,4.00522721,3596.9,3596.2,0.7858]
[1732914135468,2.78036,3596.7,3596.3,0.41153045]
[1732914135789,2.78052,3596.5,3596.2,0.7858]
[1732914135982,2.78059,3596.4,3596.2,0.7858]
[1732914137100,2.78059,3596.4,3596.3,0.55]
[1732914137595,2.78059,3596.4,3596.3,0.80924113]
[1732914138065,2.78059,3596.4,3596.3,0.80924122]
[1732914141594,2.78059,3596.4,3596.3,0.80929279]
[1732914144311,2.78042,3596.6,3596.3,0.80929279]
[1732914144615,2.78048,3596.5,3596.3,0.55]
[1732914144782,2.78048,3596.5,3596.4,0.25929473]
[1732914145975,8.33865,3597.7,3596.4,0.25929473]
[1732914146305,2.78038,3596.7,3596.3,0.55]
[1732914146477,2.78041,3596.6,3596.3,0.55]
[1732914146678,2.78038,3596.7,3596.3,0.55]
[1732914147286,2.78045,3596.6,3596.3,0.55]
[1732914149726,4.00522721,3596.9,3596.3,0.55]
[1732914149946,2.78042,3596.6,3596.3,0.55]
[1732914157651,2.77991,3597.3,3596.3,0.55]
[1732914157652,0.7695,3597.5,3596.8,0.55]
[1732914157846,2.77993,3597.3,3597.0,0.7512]
[1732914158270,2.77979,3597.4,3597.0,0.7512]
[1732914159990,2.77992,3597.3,3597.0,0.7512]
[1732914160283,2.78001,3597.1,3597.0,1.3012]
[1732914160457,2.77999,3597.2,3597.0,1.3012]
[1732914161683,5.55964,3597.4,3597.0,1.3012]
[1732914162581,2.77979,3597.4,3597.0,1.3012]
[1732914162783,2.77988,3597.3,3597.0,1.3012]
[1732914165654,2.7798,3597.4,3597.0,1.3012]
[1732914165837,2.7798,3597.4,3597.0,1.709348]
[1732914168586,3.0,3598.7,3597.1,0.55]
[1732914168883,2.77945,3597.9,3597.4,0.55]
[1732914169090,2.77954,3597.8,3597.4,0.55]
[1732914169246,2.77932,3598.0,3597.6,0.55]
[1732914169450,2.77941,3597.9,3597.6,0.55]
[1732914170054,2.77948,3597.8,3597.6,0.55]
[1732914170557,1.22502721,3598.1,3597.6,0.55]
[1732914170759,2.77947,3597.9,3597.6,0.55]
[1732914170959,1.22502721,3597.9,3597.5,0.8194]
[1732914171149,1.22502721,3597.7,3596.9,0.8065]
[1732914171375,1.22502721,3597.5,3596.9,1.165184]
[1732914171577,1.22502721,3597.5,3596.6,0.8065]
[1732914171578,2.78018,3596.9,3596.6,0.8065]
[1732914171877,2.78026,3596.8,3596.6,0.8065]
[1732914173512,2.78026,3596.8,3596.7,0.55]
[1732914174786,2.78026,3596.8,3596.6,0.8065]
[1732914174979,2.78014,3597.0,3596.6,0.8065]
[1732914175615,1.22502721,3597.1,3596.6,0.8065]
[1732914175616,2.78032,3596.8,3596.6,0.8065]
[1732914175818,2.78039,3596.7,3596.5,0.55]
[1732914176379,2.78054,3596.5,3596.2,0.55]
[1732914176609,2.7806,3596.4,3596.2,0.55]
[1732914176825,2.78063,3596.3,3596.1,0.00106733]
[1732914177014,2.78071,3596.2,3596.1,0.00106733]
[1732914177318,2.78071,3596.2,3596.1,0.81436733]
[1732914177709,2.78071,3596.2,3596.1,0.00106733]
[1732914179964,4.00573721,3596.2,3596.1,0.00106733]
[1732914180468,2.78071,3596.2,3596.1,0.00106733]
[1732914181165,4.00573721,3596.2,3596.1,0.00106733]
[1732914181751,2.78071,3596.2,3596.1,0.00106733]
[1732914181931,3.53382,3596.4,3596.1,0.00106733]
[1732914182132,2.78063,3596.3,3596.1,0.00106733]
[1732914183316,2.78071,3596.2,3596.1,0.00106733]
[1732914184718,2.78056,3596.4,3596.1,0.00106733]
[1732914184974,2.78048,3596.5,3596.1,0.00106733]
[1732914186762,2.78048,3596.5,3596.1,0.02887241]
[1732914187259,2.78048,3596.5,3596.1,0.00106733]
[1732914188627,2.7803,3596.8,3596.2,0.7597]
[1732914188958,2.7803,3596.8,3596.3,0.4397413]
[1732914189760,2.78032,3596.7,3596.3,0.4397413]
[1732914190121,2.78022,3596.9,3596.3,0.4397413]
[1732914190327,2.78009,3597.0,3596.3,0.4397413]
[1732914190537,2.78029,3596.8,3596.3,0.4397413]
[1732914191237,2.78009,3597.0,3596.5,0.7557]
[1732914191553,2.78009,3597.0,3596.5,0.78350163]
[1732914191928,2.78009,3597.0,3596.6,0.55]
[1732914194707,2.78002,3597.1,3596.6,0.55]
[1732914194864,2.78002,3597.1,3596.7,0.02780063]
[1732914195217,2.77971,3597.5,3596.8,0.8071]
[1732914195371,0.8172,3598.1,3597.0,0.8071]
[1732914195573,2.77975,3597.5,3597.1,0.55]
[1732914195873,5.55922,3597.7,3597.1,0.55]
[1732914196380,2.77961,3597.7,3597.2,0.7772]
[1732914196586,2.77961,3597.7,3597.3,0.55]
[1732914200782,2.77973,3597.5,3597.3,0.55]
[1732914202976,2.77942,3597.9,3597.3,0.7652]
[1732914203178,2.77942,3597.9,3597.4,0.57779468]
[1732914203491,2.77952,3597.8,3597.4,0.96228847]
[1732914204689,2.77952,3597.8,3597.4,0.99008334]
[1732914204895,2.77937,3598.0,3597.6,0.55]
[1732914205088,2.77937,3598.0,3597.6,0.57779325]
[1732914205300,2.77937,3598.0,3597.6,0.57779326]
[1732914205499,2.77918,3598.2,3597.7,0.17832817]